bitfinex-derivatives/quotes_BTCF0:USTF0_20241104
["timestamp","ask_amount","ask_price","bid_price","bid_amount"]
[1730760083925,0.03951553,67820.0,67819.0,0.073766]
[1730760084123,0.3608,67823.0,67822.0,0.073762]
[1730760084818,0.01570052,67827.0,67824.0,0.07376]
[1730760085013,0.073756,67828.0,67824.0,0.07376]
[1730760085519,0.0328,67829.0,67828.0,0.073756]
[1730760085724,0.01602173,67829.0,67828.0,0.073756]
[1730760085922,0.12571805,67831.0,67823.0,0.3608]
[1730760086220,0.12571805,67831.0,67828.0,0.073755]
[1730760086429,0.19947105,67831.0,67828.0,0.073755]
[1730760086618,0.12178554,67831.0,67829.0,0.073754]
[1730760086933,0.106353,67831.0,67830.0,0.073754]
[1730760087822,0.107353,67831.0,67830.0,0.073754]
[1730760089222,0.107353,67831.0,67830.0,0.074754]
[1730760089416,0.14816781,67831.0,67830.0,0.074754]
[1730760090024,0.07441481,67831.0,67830.0,0.074754]
[1730760090230,0.0346,67831.0,67830.0,0.074754]
[1730760090526,0.0346,67831.0,67830.0,0.435554]
[1730760093524,0.0346,67831.0,67830.0,0.074754]
[1730760107645,0.108353,67831.0,67830.0,0.074754]
[1730760109839,0.108353,67831.0,67830.0,0.001]
[1730760113549,0.108353,67831.0,67830.0,0.074754]
[1730760115041,0.0346,67831.0,67830.0,0.074754]
[1730760116657,0.3914,67836.0,67835.0,0.091652]
[1730760117248,0.465147,67836.0,67835.0,0.091652]
[1730760117948,0.469147,67836.0,67835.0,0.091652]
[1730760118153,0.476147,67836.0,67835.0,0.091652]
[1730760119055,0.084747,67836.0,67835.0,0.091652]
[1730760119551,0.12498758,67836.0,67835.0,0.091652]
[1730760119953,0.080747,67836.0,67835.0,0.097652]
[1730760120855,0.080747,67836.0,67835.0,0.098652]
[1730760121160,0.073747,67836.0,67835.0,0.102652]
[1730760121758,0.074747,67836.0,67835.0,0.104652]
[1730760123556,0.001,67836.0,67835.0,0.1784]
[1730760123957,0.001,67836.0,67835.0,0.62064]
[1730760124361,0.10623,67852.0,67845.0,0.073737]
[1730760124660,0.10623,67852.0,67848.0,0.073734]
[1730760124855,0.10623,67852.0,67849.0,0.073733]
[1730760125056,0.0325,67852.0,67849.0,0.073733]
[1730760125644,0.073729,67854.0,67849.0,0.073733]
[1730760125852,0.3688,67850.0,67849.0,0.073733]
[1730760126660,0.3738,67850.0,67849.0,0.073733]
[1730760127146,0.05261752,67850.0,67849.0,0.073733]
[1730760127350,0.05261752,67850.0,67849.0,0.074733]
[1730760128356,0.013,67850.0,67849.0,0.074733]
[1730760128551,0.013,67850.0,67849.0,0.001]
[1730760128552,0.086732,67850.0,67849.0,0.001]
[1730760128863,0.12699344,67850.0,67849.0,0.001]
[1730760131264,0.086732,67850.0,67849.0,0.001]
[1730760140959,0.086732,67850.0,67849.0,0.07474]
[1730760140960,0.013,67850.0,67849.0,0.07474]
[1730760141863,0.013,67850.0,67849.0,0.001]
[1730760142060,0.05257418,67850.0,67849.0,0.001]
[1730760142260,0.05255949,67850.0,67849.0,0.001]
[1730760146469,0.12629849,67850.0,67849.0,0.001]
[1730760146974,0.12662603,67850.0,67849.0,0.001]
[1730760149072,0.086739,67850.0,67849.0,0.001]
[1730760151580,0.12695875,67850.0,67849.0,0.001]
[1730760151768,0.086739,67850.0,67849.0,0.001]
[1730760152179,0.1269787,67850.0,67849.0,0.001]
[1730760154477,0.086739,67850.0,67849.0,0.001]
[1730760154775,0.93000368,67850.0,67849.0,0.001]
[1730760155875,0.9764755,67850.0,67849.0,0.001]
[1730760156181,0.5343155,67850.0,67849.0,0.001]
[1730760156379,0.93000368,67850.0,67849.0,0.001]
[1730760159075,0.61144368,67850.0,67849.0,0.001]
[1730760160274,1.05360368,67850.0,67849.0,0.001]
[1730760160792,1.05337655,67850.0,67849.0,0.001]
[1730760160987,0.61121655,67850.0,67849.0,0.001]
[1730760162992,0.65769148,67850.0,67849.0,0.001]
[1730760163296,0.61121655,67850.0,67849.0,0.001]
[1730760163689,0.65773653,67850.0,67849.0,0.001]
[1730760164182,0.6577122,67850.0,67849.0,0.001]
[1730760165396,0.657673,67850.0,67849.0,0.001]
[1730760167087,0.75079105,67850.0,67849.0,0.001]
[1730760168386,0.38999105,67850.0,67849.0,0.001]
[1730760168582,0.75079105,67850.0,67849.0,0.001]
[1730760170000,0.75099931,67850.0,67849.0,0.001]
[1730760171095,0.39019931,67850.0,67849.0,0.001]
[1730760171290,0.75099931,67850.0,67849.0,0.001]
[1730760172091,0.70439605,67850.0,67849.0,0.001]
[1730760174695,0.34325044,67850.0,67849.0,0.001]
[1730760174891,0.70405044,67850.0,67849.0,0.001]
[1730760177002,0.34325044,67850.0,67849.0,0.001]
[1730760178703,0.25013239,67850.0,67849.0,0.001]
[1730760179299,0.25015264,67850.0,67849.0,0.001]
[1730760180800,0.17593364,67850.0,67849.0,0.001]
[1730760185009,0.17593364,67850.0,67849.0,0.5169]
[1730760185010,0.05281364,67850.0,67849.0,0.5169]
[1730760185507,0.013,67850.0,67849.0,0.5169]
[1730760185703,0.03962988,67853.0,67849.0,0.5169]
[1730760185905,0.03963314,67852.0,67851.0,0.073738]
[1730760186306,0.434535,67854.0,67851.0,0.073738]
[1730760186307,0.435455,67854.0,67853.0,0.073736]
[1730760186508,0.434535,67854.0,67853.0,0.515856]
[1730760187211,0.3608,67854.0,67853.0,0.515856]
[1730760187515,0.40077167,67854.0,67853.0,0.073736]
[1730760187698,0.41277167,67854.0,67853.0,0.074736]
[1730760188103,0.41277167,67854.0,67853.0,0.075736]
[1730760188104,0.41777167,67854.0,67853.0,0.075736]
[1730760192010,0.41762623,67854.0,67853.0,0.075736]
[1730760194408,0.3778,67854.0,67853.0,0.075736]
[1730760200223,0.017,67854.0,67853.0,0.075736]
[1730760202324,0.05682905,67854.0,67853.0,0.075736]
[1730760203418,0.10307516,67854.0,67853.0,0.075736]
[1730760203616,0.05682905,67854.0,67853.0,0.075736]
[1730760203812,0.13056405,67854.0,67853.0,0.002]
[1730760204324,0.17716651,67854.0,67853.0,0.002]
[1730760205726,0.17716651,67854.0,67853.0,0.075736]
[1730760205922,0.13095498,67854.0,67853.0,0.075736]
[1730760207323,0.17771273,67854.0,67853.0,0.075736]
[1730760207722,0.13095498,67854.0,67853.0,0.075736]
[1730760208419,0.17772114,67854.0,67853.0,0.075736]
[1730760209424,0.13095498,67854.0,67853.0,0.075736]
[1730760210618,0.13111972,67854.0,67853.0,0.075736]
[1730760215232,0.13111972,67854.0,67847.0,0.00076]
[1730760215233,0.15050277,67854.0,67847.0,0.00076]
[1730760215428,0.3608,67851.0,67843.0,0.0992]
[1730760215631,0.04038472,67850.0,67843.0,0.0992]
[1730760215835,0.3608,67851.0,67843.0,0.0992]
[1730760216030,0.0402765,67850.0,67843.0,0.0992]
[1730760216330,0.017,67854.0,67846.0,0.073744]
[1730760216331,0.11401906,67849.0,67846.0,0.073744]
[1730760216523,0.07374,67849.0,67846.0,0.073744]
[1730760216724,0.07374,67849.0,67847.0,0.001]
[1730760217121,0.07374,67849.0,67846.0,0.073744]
[1730760217335,0.04021285,67848.0,67847.0,0.001]
[1730760217832,0.04021285,67848.0,67847.0,0.002]
[1730760218032,0.04021285,67848.0,67847.0,0.001]
[1730760218222,0.11395485,67848.0,67847.0,0.001]
[1730760218831,0.11595485,67848.0,67847.0,0.001]
[1730760219536,0.12195485,67848.0,67847.0,0.001]
[1730760221631,0.1685157,67848.0,67847.0,0.001]
[1730760224427,0.12195485,67848.0,67847.0,0.001]
[1730760224626,0.12150684,67848.0,67847.0,0.001]
[1730760226233,0.04776484,67848.0,67842.0,0.073748]
[1730760226547,0.04776484,67848.0,67835.0,0.091652]
[1730760226548,0.073754,67837.0,67835.0,0.091652]
[1730760226733,0.16687305,67836.0,67835.0,0.091652]
[1730760227043,0.11342985,67836.0,67835.0,0.091652]
[1730760227343,0.073755,67836.0,67835.0,0.091652]
[1730760227727,0.196395,67836.0,67835.0,0.091652]
[1730760228340,0.203395,67836.0,67835.0,0.091652]
[1730760229033,0.080755,67836.0,67835.0,0.091652]
[1730760229740,0.200955,67836.0,67835.0,0.094652]
[1730760229936,0.195955,67836.0,67835.0,0.096652]
[1730760230544,0.073755,67836.0,67835.0,0.097652]
[1730760230734,0.195955,67836.0,67835.0,0.097652]
[1730760231045,0.195955,67836.0,67835.0,0.098652]
[1730760231236,0.21165253,67836.0,67835.0,0.098652]
[1730760233143,0.65389253,67836.0,67835.0,0.098652]
[1730760233439,0.69309112,67836.0,67835.0,0.098652]
[1730760233632,0.75659112,67836.0,67835.0,0.098652]
[1730760233833,0.75614257,67836.0,67835.0,0.098652]
[1730760234436,1.05614257,67836.0,67835.0,0.098652]
[1730760234635,1.05914257,67836.0,67835.0,0.095652]
[1730760235734,1.05914257,67836.0,67835.0,0.091652]
[1730760235936,1.06114257,67836.0,67835.0,0.091652]
[1730760236240,1.06314257,67836.0,67835.0,0.092652]
[1730760236444,1.06314257,67836.0,67815.0,0.073777]
[1730760236445,1.03389824,67836.0,67815.0,0.073777]
[1730760236639,0.073773,67819.0,67818.0,0.0069]
[1730760236840,0.16689205,67818.0,67815.0,0.073777]
[1730760237034,0.073777,67816.0,67813.0,0.0329]
[1730760237432,0.073779,67814.0,67813.0,0.0329]
[1730760239646,0.082779,67814.0,67813.0,0.0409]
[1730760240440,0.086779,67814.0,67813.0,0.0339]
[1730760245255,0.10236894,67814.0,67813.0,0.0339]
[1730760251241,0.22460894,67814.0,67813.0,0.0339]
[1730760256547,0.10236894,67814.0,67813.0,0.0339]
[1730760256742,0.22460894,67814.0,67813.0,0.0339]
[1730760259049,0.10236894,67814.0,67813.0,0.0339]
[1730760259352,0.22460894,67814.0,67813.0,0.0339]
[1730760260043,0.10236894,67814.0,67813.0,0.0339]
[1730760260348,0.208579,67814.0,67813.0,0.0339]
[1730760264747,0.208579,67814.0,67813.0,0.001]
[1730760264947,0.073788,67806.0,67802.0,0.0069]
[1730760265152,0.073788,67806.0,67800.0,0.0001]
[1730760265153,0.09311805,67805.0,67800.0,0.0001]
[1730760265451,0.09311805,67805.0,67804.0,0.073789]
[1730760266257,0.073792,67802.0,67801.0,1.50076]
[1730760266448,0.073792,67802.0,67801.0,1.5]
[1730760267551,0.073792,67802.0,67801.0,1.507]
[1730760268348,0.073792,67802.0,67801.0,1.51]
[1730760269059,0.073792,67802.0,67801.0,1.583793]
[1730760277455,0.09311805,67803.0,67802.0,0.073792]
[1730760277855,0.09311805,67803.0,67801.0,1.51076]
[1730760277856,0.3608,67805.0,67804.0,0.073789]
[1730760280560,0.3608,67805.0,67804.0,0.078789]
[1730760280757,0.434588,67805.0,67804.0,0.078789]
[1730760282691,0.3608,67805.0,67804.0,0.078789]
[1730760284376,0.1218,67807.0,67804.0,0.078789]
[1730760284377,0.4826,67807.0,67804.0,0.078789]
[1730760285172,0.556387,67807.0,67804.0,0.078789]
[1730760285468,0.556387,67807.0,67804.0,0.073789]
[1730760285667,0.556387,67807.0,67804.0,0.078789]
[1730760287667,0.09311805,67805.0,67804.0,0.078789]
[1730760288771,0.09311805,67805.0,67804.0,0.073789]
[1730760288971,0.09311805,67805.0,67804.0,0.078789]
[1730760298176,0.09311805,67805.0,67804.0,0.078783]
[1730760302471,0.16689905,67805.0,67804.0,0.078783]
[1730760310382,0.09311805,67809.0,67804.0,0.005]
[1730760310585,0.09311805,67809.0,67808.0,0.073778]
[1730760311781,0.16689505,67809.0,67808.0,0.073778]
[1730760313089,0.17089505,67809.0,67808.0,0.073778]
[1730760313783,0.17089505,67809.0,67808.0,0.074778]
[1730760317984,0.17089505,67809.0,67808.0,0.09055752]
[1730760319984,0.17089505,67809.0,67808.0,0.074778]
[1730760348308,0.17089505,67809.0,67808.0,0.106278]
[1730760351204,0.17089505,67809.0,67808.0,0.001]
[1730760351508,0.077777,67809.0,67808.0,0.001]
[1730760353211,0.198297,67809.0,67808.0,0.001]
[1730760353409,0.077777,67809.0,67808.0,0.001]
[1730760353709,0.004,67809.0,67808.0,0.074778]
[1730760354012,0.3711,67818.0,67808.0,0.0641]
[1730760354013,0.09311805,67814.0,67808.0,0.0641]
[1730760354212,0.09311805,67814.0,67813.0,0.434572]
[1730760354608,0.16688905,67814.0,67813.0,0.434572]
[1730760355111,0.16788905,67814.0,67813.0,0.434572]
[1730760355710,0.16688905,67814.0,67813.0,0.436572]
[1730760356716,0.17088905,67814.0,67813.0,0.436572]
[1730760360614,0.09711805,67814.0,67813.0,0.436572]
[1730760360812,0.10341805,67822.0,67813.0,0.878972]
[1730760361009,0.16688105,67822.0,67821.0,0.434564]
[1730760362824,0.16688105,67822.0,67821.0,0.444564]
[1730760363124,0.16888105,67822.0,67821.0,0.444564]
[1730760363822,0.09511805,67822.0,67821.0,0.444564]
[1730760365020,0.09511805,67822.0,67821.0,0.46036986]
[1730760365724,0.002,67822.0,67821.0,0.46036986]
[1730760366322,0.002,67822.0,67821.0,0.44162412]
[1730760367518,0.073754,67830.0,67829.0,0.073755]
[1730760367723,0.09311805,67831.0,67830.0,0.073754]
[1730760367914,0.09533023,67836.0,67835.0,0.073748]
[1730760368114,0.09533023,67836.0,67835.0,0.434548]
[1730760369123,0.10933023,67836.0,67835.0,0.435548]
[1730760369424,0.01621218,67836.0,67835.0,0.435548]
[1730760369728,0.01621218,67836.0,67835.0,0.442548]
[1730760370925,0.00721218,67836.0,67835.0,0.441548]
[1730760371618,0.00721218,67836.0,67835.0,0.45738879]
[1730760372016,0.07374,67843.0,67842.0,0.073741]
[1730760373516,0.08574,67843.0,67842.0,0.074741]
[1730760374425,0.012,67843.0,67842.0,0.074741]
[1730760378924,0.012,67843.0,67842.0,0.1227443]
[1730760380628,0.012,67843.0,67842.0,0.21586235]
[1730760384339,0.012,67843.0,67842.0,0.57666235]
[1730760386037,0.012,67843.0,67842.0,0.21586235]
[1730760386342,0.012,67843.0,67842.0,1.01886235]
[1730760387845,0.012,67843.0,67842.0,1.01986235]
[1730760388942,0.01,67843.0,67842.0,1.01986235]
[1730760389631,0.01,67843.0,67842.0,1.1129804]
[1730760389833,0.01,67843.0,67842.0,1.01986235]
[1730760390040,0.01,67843.0,67842.0,1.1129804]
[1730760391036,0.0103,67852.0,67851.0,0.073731]
[1730760391243,0.073727,67855.0,67853.0,0.065728]
[1730760392049,0.073728,67854.0,67853.0,0.065728]
[1730760392544,0.073728,67854.0,67853.0,0.066728]
[1730760393135,0.082728,67854.0,67853.0,0.066728]
[1730760393645,0.073728,67854.0,67853.0,0.065728]
[1730760393948,0.079728,67854.0,67853.0,0.065728]
[1730760394151,0.079728,67854.0,67853.0,0.073728]
[1730760395638,0.079728,67854.0,67853.0,0.08977511]
[1730760395843,0.073728,67854.0,67853.0,0.08977511]
[1730760397346,0.11555105,67854.0,67853.0,0.08977511]
[1730760404549,0.073728,67854.0,67853.0,0.08977511]
[1730760406846,0.073728,67854.0,67853.0,0.08177511]
[1730760409353,0.0103,67861.0,67853.0,0.02404711]
[1730760409551,0.36172,67863.0,67857.0,0.073724]
[1730760409552,0.073725,67858.0,67857.0,0.073724]
[1730760411660,0.11654128,67858.0,67857.0,0.073724]
[1730760412658,0.16630651,67858.0,67857.0,0.073724]
[1730760412848,0.16630651,67858.0,67857.0,0.078724]
[1730760413450,0.11654128,67858.0,67857.0,0.078724]
[1730760415063,0.11666773,67858.0,67857.0,0.078724]
[1730760419158,0.1166234,67858.0,67857.0,0.078724]
[1730760419557,0.073725,67858.0,67857.0,0.078724]
[1730760419858,0.11666428,67858.0,67857.0,0.078724]
[1730760420454,0.07372,67862.0,67861.0,0.07372]
[1730760422047,0.07372,67862.0,67861.0,0.06572]
[1730760422557,0.07372,67862.0,67861.0,0.06672]
[1730760423361,0.07372,67862.0,67861.0,0.06772]
[1730760427454,0.11672304,67862.0,67861.0,0.06772]
[1730760427973,0.16665187,67862.0,67861.0,0.06772]
[1730760429465,0.90873187,67862.0,67861.0,0.002]
[1730760429670,0.073725,67857.0,67855.0,0.073726]
[1730760429961,0.60873187,67862.0,67855.0,0.073726]
[1730760429962,0.11673204,67856.0,67855.0,0.073726]
[1730760430468,0.55885204,67856.0,67855.0,0.073726]
[1730760431066,0.55885204,67856.0,67855.0,0.079726]
[1730760431271,0.11673204,67856.0,67855.0,0.079726]
[1730760431774,0.11673204,67856.0,67855.0,0.0966276]
[1730760432571,0.11773204,67856.0,67855.0,0.0966276]
[1730760435462,0.074729,67856.0,67855.0,0.0966276]
[1730760437461,0.074729,67856.0,67855.0,0.0886276]
[1730760442569,0.55932502,67856.0,67855.0,0.007]
[1730760444669,0.11720502,67856.0,67855.0,0.007]
[1730760445282,0.04347602,67856.0,67855.0,0.007]
[1730760445581,0.11720502,67856.0,67855.0,0.10011805]
[1730760446469,0.11712551,67856.0,67855.0,0.10011805]
[1730760446672,0.11712551,67856.0,67855.0,1.60011805]
[1730760446868,0.11712551,67856.0,67855.0,1.507]
[1730760447591,0.11712551,67856.0,67855.0,0.007]
[1730760452883,0.11712551,67856.0,67855.0,0.003]
[1730760454986,0.11720822,67856.0,67855.0,0.003]
[1730760455789,0.11710432,67856.0,67855.0,0.003]
[1730760465186,0.1170471,67856.0,67855.0,0.003]
[1730760465699,0.16621013,67856.0,67855.0,0.003]
[1730760468098,0.16621013,67856.0,67855.0,0.001]
[1730760472489,0.1170471,67856.0,67855.0,0.001]
[1730760474799,0.2355671,67856.0,67855.0,0.001]
[1730760479299,0.23564626,67856.0,67855.0,0.001]
[1730760487296,0.23565523,67856.0,67855.0,0.001]
[1730760487703,0.23565607,67856.0,67855.0,0.001]
[1730760488900,0.193249,67856.0,67855.0,0.001]
[1730760489703,0.28475386,67856.0,67855.0,0.001]
[1730760489912,0.28479386,67856.0,67855.0,0.001]
[1730760492712,0.16623386,67856.0,67855.0,0.001]
[1730760493111,0.09150486,67856.0,67855.0,0.074727]
[1730760493312,0.09150486,67856.0,67855.0,0.516847]
[1730760493506,0.09150486,67856.0,67855.0,0.580747]
[1730760493818,0.09135659,67856.0,67855.0,0.580747]
[1730760495010,0.16508559,67856.0,67855.0,0.580747]
[1730760495608,0.11607184,67856.0,67855.0,0.580747]
[1730760495809,0.073729,67856.0,67855.0,0.138627]
[1730760496204,0.3608,67857.0,67855.0,0.611847]
[1730760496404,0.3608,67857.0,67856.0,0.515845]
[1730760498512,0.073722,67859.0,67857.0,0.073724]
[1730760498816,0.073722,67859.0,67858.0,0.09311805]
[1730760499113,0.073722,67859.0,67858.0,0.15884105]
[1730760500114,0.073722,67859.0,67858.0,0.16184105]
[1730760502012,0.0103,67864.0,67858.0,0.16184105]
[1730760502013,0.0103,67864.0,67858.0,0.08811805]
[1730760502314,0.39412,67867.0,67863.0,0.3608]
[1730760502315,0.073715,67866.0,67863.0,0.3608]
[1730760502514,0.08924807,67870.0,67863.0,0.3608]
[1730760502820,0.0103,67873.0,67872.0,0.073708]
[1730760503023,0.0307,67879.0,67877.0,0.073703]
[1730760503221,0.0307,67879.0,67877.0,0.16682005]
[1730760503416,0.04276189,67878.0,67877.0,0.16682005]
[1730760504414,0.073701,67879.0,67877.0,0.16682105]
[1730760504713,0.04276189,67878.0,67877.0,0.16682105]
[1730760505725,0.04276189,67878.0,67877.0,0.16882105]
[1730760506322,0.074701,67879.0,67877.0,0.09511805]
[1730760506520,0.074701,67879.0,67878.0,0.073702]
[1730760506823,0.11701108,67879.0,67878.0,0.073702]
[1730760507315,0.073701,67879.0,67878.0,0.073702]
[1730760508226,0.11800116,67879.0,67878.0,0.073702]
[1730760508424,0.074701,67879.0,67878.0,0.073702]
[1730760508827,0.073701,67879.0,67878.0,0.073702]
[1730760509019,0.074701,67879.0,67878.0,0.074702]
[1730760509524,0.074701,67879.0,67878.0,0.075702]
[1730760509920,0.074701,67879.0,67877.0,0.1087043]
[1730760509921,0.001,67879.0,67877.0,0.1087043]
[1730760510120,0.073702,67878.0,67877.0,0.01558625]
[1730760510320,0.073704,67877.0,67875.0,0.073705]
[1730760510524,0.073704,67877.0,67876.0,0.073704]
[1730760512022,0.073704,67877.0,67876.0,0.074704]
[1730760512516,0.001,67877.0,67876.0,0.002]
[1730760512721,0.001,67877.0,67876.0,0.075704]
[1730760514922,0.001,67877.0,67876.0,0.106104]
[1730760515923,0.073699,67881.0,67879.0,0.0737]
[1730760516122,0.073699,67881.0,67880.0,0.16681705]
[1730760517421,0.11702733,67881.0,67880.0,0.16681705]
[1730760517936,0.11902733,67881.0,67880.0,0.16781705]
[1730760518520,0.11802733,67881.0,67880.0,0.16781705]
[1730760518728,0.11902733,67881.0,67880.0,0.16881705]
[1730760520520,0.11902733,67881.0,67880.0,0.18444875]
[1730760520724,0.11802733,67881.0,67880.0,0.18344875]
[1730760520934,0.11902733,67881.0,67880.0,0.18344875]
[1730760524637,0.11929847,67881.0,67880.0,0.18344875]
[1730760524836,0.0103,67886.0,67880.0,1.1365668]
[1730760525030,0.00221074,67908.0,67899.0,0.073679]
[1730760525031,0.0324,67905.0,67899.0,0.073679]
[1730760525234,0.0324,67905.0,67904.0,0.073673]
[1730760525441,0.0324,67905.0,67904.0,0.16679105]
[1730760526239,0.00221074,67908.0,67907.0,0.07367]
[1730760527936,0.00321074,67908.0,67907.0,0.07367]
[1730760528140,0.00321074,67908.0,67907.0,0.07467]
[1730760529933,0.00221074,67908.0,67907.0,0.08467]
[1730760530334,0.00221074,67908.0,67907.0,0.08367]
[1730760530641,0.00221074,67908.0,67907.0,0.08767]
[1730760530942,0.00221074,67908.0,67907.0,0.08667]
[1730760531142,0.00221074,67908.0,67907.0,0.09067]
[1730760531341,0.073668,67909.0,67908.0,0.073669]
[1730760531542,0.073668,67909.0,67908.0,0.16678705]
[1730760533042,0.073668,67909.0,67908.0,0.17878705]
[1730760534232,0.073668,67909.0,67908.0,0.18178705]
[1730760535440,0.07366,67916.0,67908.0,0.2012361]
[1730760535742,0.0324,67917.0,67915.0,0.16677905]
[1730760540049,0.0324,67917.0,67915.0,0.17177905]
[1730760540744,0.0324,67917.0,67915.0,0.17677905]
[1730760541937,0.0324,67917.0,67915.0,0.19250288]
[1730760545748,0.0324,67917.0,67916.0,0.07366]
[1730760546851,0.37761418,67926.0,67919.0,0.073657]
[1730760547148,0.0329,67925.0,67920.0,0.073656]
[1730760547759,0.106551,67925.0,67923.0,0.09311805]
[1730760548137,0.0329,67925.0,67920.0,0.073656]
[1730760548351,0.073653,67923.0,67922.0,0.09311805]
[1730760549851,0.073653,67923.0,67922.0,0.09711805]
[1730760554048,0.515333,67923.0,67922.0,0.09711805]
[1730760555359,0.515333,67923.0,67916.0,0.07366]
[1730760555360,0.073656,67920.0,67917.0,0.09311805]
[1730760555548,0.04460695,67919.0,67917.0,0.09311805]
[1730760555751,0.04460695,67918.0,67917.0,0.09311805]
[1730760556561,0.04460695,67918.0,67917.0,0.10011805]
[1730760557554,0.15046495,67918.0,67917.0,0.10011805]
[1730760559051,0.15146495,67918.0,67917.0,0.10111805]
[1730760560251,0.11926495,67918.0,67917.0,0.10111805]
[1730760562452,0.11950426,67918.0,67917.0,0.10111805]
[1730760562855,0.074658,67918.0,67917.0,0.10111805]
[1730760564263,0.11950384,67918.0,67917.0,0.10111805]
[1730760567166,0.11930808,67918.0,67917.0,0.10111805]
[1730760571873,0.11925455,67918.0,67917.0,0.10111805]
[1730760576362,0.11926372,67918.0,67917.0,0.10111805]
[1730760577874,0.17077482,67918.0,67917.0,0.10111805]
[1730760579970,0.17077482,67918.0,67917.0,1.60111805]
[1730760580672,0.17077482,67918.0,67917.0,0.10111805]
[1730760581274,0.17039826,67918.0,67917.0,0.10111805]
[1730760582674,0.17039826,67918.0,67917.0,0.17478505]
[1730760585773,0.11896502,67918.0,67917.0,0.17478505]
[1730760588275,0.1171606,67918.0,67917.0,0.17478505]
[1730760590585,0.11730125,67918.0,67917.0,0.17478505]
[1730760591886,0.11730125,67918.0,67917.0,0.20748505]
[1730760597786,0.04443967,67918.0,67917.0,0.20748505]
[1730760599576,0.09591439,67918.0,67917.0,0.20748505]
[1730760599991,0.09580444,67918.0,67917.0,0.20748505]
[1730760600890,0.04433242,67918.0,67917.0,0.20748505]
[1730760603089,0.40513242,67918.0,67917.0,0.20748505]
[1730760603391,0.40508585,67918.0,67917.0,0.20748505]
[1730760606592,0.04428585,67918.0,67917.0,0.20748505]
[1730760607884,0.04428585,67918.0,67917.0,0.13381805]
[1730760608081,0.09600249,67924.0,67917.0,0.13381805]
[1730760608287,0.1547594,67924.0,67923.0,0.07366]
[1730760609691,0.09600249,67924.0,67923.0,0.07366]
[1730760609896,0.14050858,67924.0,67923.0,0.07366]
[1730760610493,0.14050858,67924.0,67923.0,0.07666]
[1730760611787,0.09608451,67924.0,67923.0,0.07666]
[1730760612887,0.0960712,67924.0,67923.0,0.003]
[1730760613087,0.0960712,67924.0,67923.0,0.07666]
[1730760613088,0.15484396,67924.0,67923.0,0.07666]
[1730760614298,0.22850296,67924.0,67923.0,0.07666]
[1730760615503,0.1697302,67924.0,67923.0,0.07666]
[1730760615895,0.11811486,67924.0,67923.0,0.07666]
[1730760617697,0.11808937,67924.0,67923.0,0.07666]
[1730760620296,0.47888937,67924.0,67923.0,0.07666]
[1730760622001,0.47888937,67924.0,67923.0,0.06866]
[1730760622499,0.47886452,67924.0,67923.0,0.06866]
[1730760625397,0.11806452,67924.0,67923.0,0.06866]
[1730760625699,0.53032341,67924.0,67923.0,0.06866]
[1730760630194,0.53025809,67924.0,67923.0,0.06866]
[1730760631795,0.456258,67924.0,67918.0,0.01614292]
[1730760631990,0.073663,67921.0,67917.0,0.12581805]
[1730760632200,0.095458,67920.0,67917.0,0.12581805]
[1730760632507,0.095458,67919.0,67918.0,0.073666]
[1730760633407,0.15386208,67920.0,67917.0,0.12581805]
[1730760633594,0.15386208,67920.0,67919.0,0.073665]
[1730760635207,0.15386208,67920.0,67919.0,0.079665]
[1730760638006,0.04417211,67920.0,67919.0,0.079665]
[1730760641311,0.04418894,67920.0,67919.0,0.079665]
[1730760643715,0.11785194,67920.0,67919.0,0.079665]
[1730760645017,0.16910676,67920.0,67919.0,0.079665]
[1730760648610,0.11785194,67920.0,67919.0,0.079665]
[1730760651425,0.16906612,67920.0,67919.0,0.079665]
[1730760653125,0.11785194,67920.0,67919.0,0.079665]
[1730760655219,0.04418894,67920.0,67919.0,0.079665]
[1730760655421,0.04411488,67920.0,67919.0,0.079665]
[1730760659024,0.3608,67921.0,67919.0,0.006]
[1730760659217,0.3608,67921.0,67920.0,0.073663]
[1730760659417,0.40486863,67921.0,67920.0,0.073663]
[1730760659828,0.04406863,67921.0,67920.0,0.073663]
[1730760660123,0.40486863,67921.0,67920.0,0.073663]
[1730760663429,0.40473679,67921.0,67920.0,0.073663]
[1730760664217,0.40473679,67921.0,67920.0,0.078663]
[1730760666018,0.04393679,67921.0,67920.0,0.078663]
[1730760666223,0.12178547,67927.0,67925.0,0.073657]
[1730760666427,0.12178547,67927.0,67925.0,0.073658]
[1730760666428,0.04400661,67926.0,67925.0,0.073658]
[1730760667025,0.04400661,67926.0,67925.0,0.16677605]
[1730760667431,0.04400661,67926.0,67925.0,0.16777605]
[1730760668229,0.04400661,67926.0,67925.0,0.16877605]
[1730760669832,0.11766361,67926.0,67925.0,0.16877605]
[1730760673238,0.04812847,67927.0,67925.0,0.09511805]
[1730760673425,0.12178447,67927.0,67926.0,0.073657]
[1730760675134,0.12778447,67927.0,67926.0,0.074657]
[1730760675730,0.12778447,67927.0,67926.0,0.075657]
[1730760677438,0.22283444,67927.0,67926.0,0.075657]
[1730760678237,0.48858447,67927.0,67926.0,0.075657]
[1730760678736,0.12778447,67927.0,67926.0,0.075657]
[1730760679132,0.48858447,67927.0,67926.0,0.075657]
[1730760679836,0.41492847,67927.0,67926.0,0.075657]
[1730760680028,0.38282847,67927.0,67926.0,0.075657]
[1730760680630,0.3668,67927.0,67926.0,0.075657]
[1730760682551,0.41082542,67927.0,67926.0,0.075657]
[1730760683058,0.41082542,67927.0,67926.0,0.16877505]
[1730760683446,0.46194307,67927.0,67926.0,0.16877505]
[1730760689231,0.10114307,67927.0,67926.0,0.16877505]
[1730760690341,0.05002638,67927.0,67926.0,0.16877505]
[1730760692843,0.05008969,67927.0,67926.0,0.16877505]
[1730760698437,0.006,67927.0,67926.0,0.16877505]
[1730760698751,0.10127848,67927.0,67926.0,0.16877505]
[1730760702144,0.006,67927.0,67926.0,0.16877505]
[1730760702445,0.05008664,67927.0,67926.0,0.16877505]